[Event "Karnataka State Open-ch 2018"]
[Site "Bengaluru"]
[Date "2018.04.17"]
[Round "7"]
[White "Sridharan Ramanathan"]
[Black "Tejas Cavale"]
[Result "1-0"]
[ECO "B32"]
[WhiteElo "1997"]
[BlackElo "1409"]
[Annotator "NA RC"]
[PlyCount "57"]
[EventDate "2018.??.??"]
[EventType "swiss"]
[EventCountry "IND"]
[SourceTitle "playchess.com"]
[Source "ChessBase"]
[SourceQuality "1"]
[TimeControl "5400+30"]

{[%evp 23,57,239,258,356,478,381,804,833,831,916,885,899,931,625,777,604,611,477,564,437,445,508,513,553,715,762,887,32767,32767,32767,32767,824,873,911,954,953]} 1. e4 {[%emt 0:00:00]} c5 {[%emt 0:00:03]} 2. Nf3 {[%emt 0:00:00]} Nc6 {[%emt 0:00:03]} 3. d4 {[%emt 0:00:00]} cxd4 {[%emt 0:00:02]} 4. Nxd4 {[%emt 0:00:02]} Nxd4 {[%emt 0:00:06]} 5. Qxd4 {[%emt 0:00:25]} d6 {[%emt 0:00:40]} 6. Nc3 {[%emt 0:01:53]} a6 {[%emt 0:00:35] B32: Sicilian: Löwenthal and Kalashnikov Variations} 7. Be2 {[%emt 0:00:11]} e6 {[%emt 0:01:19]} 8. O-O {[%emt 0:00:34]} Qf6 $146 {[%emt 0:00:49]} ({Predecessor:} 8... Ne7 9. Bg5 Qc7 10. Rad1 Nc6 11. Qe3 h6 12. Bf4 b5 13. Qg3 e5 14. Nd5 Qb7 {1-0 (27) Zelcic,R (2552)-Kristovic,M (2349) Zadar 2003}) 9. Qd3 {[%emt 0:01:50]} Be7 {[%emt 0:01:45]} 10. f4 {[%emt 0:01:35]} Nh6 {[%emt 0:00:52]} 11. Kh1 {[%emt 0:07:54]} Qg6 {[%emt 0:04:38]} 12. Qd1 {[%emt 0:09:35]} b5 {[%emt 0:13:35] [#]} 13. f5 $1 {[%emt 0:04:19]} exf5 {[%emt 0:01:25]} 14. Bh5 {[%emt 0:00:12]} Qf6 $2 {[%emt 0:01:07]} (14... Qe6 15. Nd5 O-O) 15. Nd5 {[%emt 0:00:33]} Qh4 {[%emt 0:02:09]} 16. g3 {[%emt 0:03:44]} Qxe4+ {[%emt 0:03:11]} 17. Bf3 {[%emt 0:00:25]} Qc4 {[%emt 0:00:15]} 18. Nxe7 {[%emt 0:03:15]} Kxe7 {[%emt 0:04:08]} 19. Bxh6 {[%emt 0:04:19]} Rb8 {[%emt 0:00:42]} 20. Bf4 {[%emt 0:00:45]} Rb6 {[%emt 0:00:13]} 21. Bd5 {[%emt 0:00:47]} Qc5 {[%emt 0:00:03]} 22. Re1+ {[%emt 0:00:29]} Be6 {[%emt 0:00:11]} 23. Bg2 {[%emt 0:05:57]} Rc8 {[%emt 0:00:21]} 24. Be3 {[%emt 0:00:27]} Qxc2 {[%emt 0:00:44]} 25. Qxc2 {[%emt 0:00:37]} Rxc2 {[%emt 0:00:08]} 26. Bxb6 {[%emt 0:00:07]} Rxb2 {[%emt 0:00:06]} 27. Bd4 {[%emt 0:00:38]} Rd2 {[%emt 0:00:28]} 28. Bxg7 {[%emt 0:00:15]} d5 {[%emt 0:00:04]} 29. Bh6 $18 {[%emt 0:01:21]} 1-0

[Event "Karnataka State Open-ch 2018"]
[Site "Bengaluru"]
[Date "2018.04.17"]
[Round "7"]
[White "Gavi, Siddayya"]
[Black "Bachalkar Sadanand"]
[Result "1-0"]
[ECO "C79"]
[WhiteElo "1993"]
[BlackElo "1471"]
[Annotator "NA RC"]
[PlyCount "95"]
[EventDate "2018.??.??"]
[EventType "swiss"]
[EventCountry "IND"]
[SourceTitle "playchess.com"]
[Source "ChessBase"]
[SourceQuality "1"]
[TimeControl "5400+30"]

{[%evp 37,95,174,185,195,202,165,192,188,200,197,199,185,196,97,193,147,210,121,105,104,198,200,215,157,150,153,144,139,185,249,239,262,258,337,325,352,392,372,377,475,412,464,444,597,604,875,32767,32767,32767,32767,7100,12842,29977,29986,29983,29986,29986,29987,29987,29988]} 1. e4 {[%emt 0:00:00]} e5 {[%emt 0:00:47]} 2. Nf3 {[%emt 0:00:00]} Nc6 {[%emt 0:00:09]} 3. Bb5 {[%emt 0:00:00]} a6 {[%emt 0:01:03]} 4. Ba4 {[%emt 0:00:02]} Nf6 {[%emt 0:01:07]} 5. O-O {[%emt 0:00:10]} d6 {[%emt 0:02:26]} 6. c3 {[%emt 0:03:00]} Bd7 {[%emt 0:00:19]} 7. Re1 {[%emt 0:00:52]} Be7 {[%emt 0:00:23]} 8. d4 {[%emt 0:00:38]} O-O 9. h3 Qe8 {[%emt 0:04:25] C87: Closed Ruy Lopez: Steinitz-type lines after 6 Re1 d6} (9... Re8 10. Nbd2 Bf8 11. a3 g6 12. Bc2 Bg7 13. Nf1 Nh5 14. Be3 h6 15. Qd2 g5 16. Ng3 Nf4 17. Nf5 Bxf5 18. exf5 {1-0 (70) Zhigalko,S (2641)-Safarli,E (2639) Riadh 2017}) 10. Bc2 {[%emt 0:01:55]} Qc8 $146 {[%emt 0:00:22]} ({Predecessor:} 10... h6 11. Nbd2 Rd8 12. Nf1 Nh7 13. Ng3 Ng5 14. Nxg5 Bxg5 15. Bxg5 hxg5 16. Qh5 Qe7 17. Nf5 Bxf5 18. exf5 {½-½ (32) Yeung,C (1876)-Limbu,P (1731) Hong Kong 2013}) 11. Kh2 {[%emt 0:00:42]} Ne8 {[%emt 0:01:01]} 12. Nbd2 {[%emt 0:00:50]} f5 {[%emt 0:00:40]} 13. dxe5 {[%emt 0:00:15]} fxe4 {[%emt 0:01:40]} 14. Bxe4 {[%emt 0:00:32]} Nxe5 {[%emt 0:02:12]} 15. Nxe5 {[%emt 0:00:23]} dxe5 {[%emt 0:00:21]} 16. Qb3+ {[%emt 0:01:00]} Be6 {[%emt 0:00:51]} 17. Qxb7 {[%emt 0:01:36]} Qxb7 {[%emt 0:00:43]} 18. Bxb7 {[%emt 0:00:03]} Rb8 {[%emt 0:00:28]} 19. Bf3 {[%emt 0:00:34]} Bd6 {[%emt 0:01:19]} 20. Ne4 {[%emt 0:00:08]} Be7 {[%emt 0:00:45]} 21. b3 {[%emt 0:00:25]} Rd8 {[%emt 0:02:34]} 22. Be3 {[%emt 0:00:29]} Bf5 23. Rad1 Bxe4 {[%emt 0:02:57]} 24. Bxe4 {[%emt 0:01:43]} Nf6 {[%emt 0:00:32]} 25. f3 {[%emt 0:01:07]} (25. Bf3 $18 {is more deadly.}) 25... Bd6 {[%emt 0:00:48]} (25... Nxe4 $16 {keeps fighting.} 26. fxe4 h6) 26. g3 {[%emt 0:00:28]} a5 {[%emt 0:01:09]} (26... Nxe4 $16 {keeps fighting.} 27. fxe4 Ba3) 27. Rd3 {[%emt 0:01:42]} (27. Bd3 $18) 27... Nxe4 {[%emt 0:01:43]} 28. fxe4 {[%emt 0:00:02]} Rf3 {[%emt 0:01:59]} (28... Ba3 $16 29. Red1 Rxd3 30. Rxd3 Rf1) 29. Kg2 {[%emt 0:00:10]} Rdf8 {[%emt 0:00:33]} 30. Red1 {[%emt 0:00:07]} h6 {[%emt 0:01:52]} 31. Bg1 {[%emt 0:00:49]} Rxd3 {[%emt 0:00:37]} 32. Rxd3 {[%emt 0:00:02]} Kf7 {[%emt 0:00:40]} 33. Rf3+ {[%emt 0:04:22]} Ke6 {[%emt 0:00:10]} 34. Rxf8 {[%emt 0:00:08]} Bxf8 {[%emt 0:00:25]} 35. Kf3 {[%emt 0:00:15]} g6 {[%emt 0:00:47]} 36. Ke2 {[%emt 0:00:30]} Kd6 {[%emt 0:00:34]} 37. Kd3 {[%emt 0:00:10]} Kc6 {[%emt 0:00:26]} 38. Kc4 {[%emt 0:00:07]} h5 {[%emt 0:00:54]} 39. Be3 {[%emt 0:00:21]} Be7 {[%emt 0:00:46]} 40. a4 {[%emt 0:00:28]} Bd6 {[%emt 0:02:09]} 41. b4 {[%emt 0:00:23]} axb4 {[%emt 0:00:46]} 42. cxb4 {[%emt 0:00:02]} Kb7 {[%emt 0:00:22]} 43. Bc5 {[%emt 0:00:07]} Kc6 {[%emt 0:00:57]} 44. b5+ {[%emt 0:00:23]} Kd7 {[%emt 0:00:23]} 45. a5 {[%emt 0:00:12]} g5 {[%emt 0:01:05]} 46. Bxd6 {[%emt 0:00:23]} cxd6 {[%emt 0:00:09]} 47. Kd5 {[%emt 0:00:06]} Kc7 {[%emt 0:01:58]} 48. a6 {[%emt 0:00:14]} 1-0

[Event "Karnataka State Open-ch 2018"]
[Site "Bengaluru"]
[Date "2018.04.17"]
[Round "7"]
[White "Manjunath, J."]
[Black "Govardhana C"]
[Result "1-0"]
[ECO "B12"]
[WhiteElo "1986"]
[BlackElo "1466"]
[Annotator "NA"]
[PlyCount "59"]
[EventDate "2018.??.??"]
[EventType "swiss"]
[EventCountry "IND"]
[SourceTitle "playchess.com"]
[Source "ChessBase"]
[SourceQuality "1"]
[TimeControl "5400+30"]

{[%evp 21,59,95,138,118,148,106,164,177,190,128,131,130,155,102,172,147,244,210,558,267,445,32767,234,266,32767,32767,32767,32767,32767,32767,32767,32767,32767,32767,32767,32767,32767,32767,848,972]} 1. e4 {[%emt 0:17:07]} c6 {[%emt 0:02:27]} 2. d4 {[%emt 0:00:12]} d6 {[%emt 0:00:02]} 3. Nc3 {[%emt 0:00:09]} Qc7 {[%emt 0:00:01]} 4. f4 {[%emt 0:00:45]} Nd7 {[%emt 0:01:04] B12: Caro-Kann: Advance Variation} 5. Nf3 {[%emt 0:00:19]} e5 {[%emt 0:00:25]} 6. d5 {[%emt 0:01:29]} (6. Bc4 h6 7. a4 Ngf6 8. Ba2 Be7 9. O-O O-O 10. Kh1 exd4 11. Qxd4 d5 12. exd5 {0-1 (26) Cabarkapa,N (2424)-Sredojevic,I (2342) Novi Sad 2016}) 6... Ngf6 {[%emt 0:00:29]} 7. Bc4 {[%emt 0:00:31]} h6 $146 {[%emt 0:00:17]} ({Find the theoretical novelty and annotate with similar games:} 7... Be7 8. dxc6 bxc6 9. h3 Qa5 10. Bd2 Qb4 11. b3 Qb6 12. Na4 {0-1 (59) Sesan,J (1879)-Hrupacki,M (2108) Zagreb 2011}) 8. Qe2 {[%emt 0:00:39]} Be7 {[%emt 0:00:08]} 9. Be3 {[%emt 0:00:27]} a6 {[%emt 0:01:17]} 10. a4 {[%emt 0:00:15]} c5 {[%emt 0:02:01]} 11. fxe5 {[%emt 0:00:46]} dxe5 {[%emt 0:04:19]} 12. O-O {[%emt 0:00:25]} O-O {[%emt 0:08:20]} 13. a5 {[%emt 0:01:48]} Re8 {[%emt 0:10:05]} 14. h3 {[%emt 0:01:11]} Nf8 {[%emt 0:00:25]} 15. Qf2 {[%emt 0:00:21]} Ng6 {[%emt 0:07:20]} 16. Nd2 {[%emt 0:05:32]} Bd7 {[%emt 0:05:06]} 17. Qg3 {[%emt 0:03:15]} Qd6 {[%emt 0:02:13]} (17... Nf4 $16 {was worth a try.}) 18. Be2 {[%emt 0:00:25]} Rf8 {[%emt 0:07:53]} (18... Bd8 $16 {was worth a try.} 19. Nc4 Qe7) 19. Nc4 {[%emt 0:00:17]} Qc7 $2 {[%emt 0:00:27]} (19... Qb8 {is tougher.} 20. Nb6 Bb5 21. Nxb5 axb5 22. Rxf6 Bxf6 23. Nxa8 Qxa8 24. Bxc5 Rc8) 20. Bxh6 {[%emt 0:08:42]} Bb5 $2 {[%emt 0:25:53] [#]} (20... gxh6 {was called for.} 21. d6 Qd8 22. dxe7 Qxe7) 21. Be3 {[%emt 0:07:11]} (21. d6 $142 $1 {[%mdl 512]} Bxd6 {[#]} 22. Bxg7 $1 {[%mdl 512]} Kxg7 23. Rxf6 $1 {[%mdl 512]} Kxf6 24. Nd5+ Kg7 25. Nxc7 Bxc7 26. Bd3) 21... Bxc4 {[%emt 0:01:34]} 22. Bxc4 $18 {[%emt 0:00:13]} Rad8 {[%emt 0:06:31]} 23. Qxg6 {[%emt 0:00:40]} fxg6 {[%emt 0:03:45]} 24. d6+ {[%emt 0:00:10]} Kh7 {[%emt 0:00:30]} 25. dxc7 {[%emt 0:00:09]} Rc8 {[%emt 0:00:05]} 26. Nd5 {[%emt 0:01:14]} Nxd5 {[%emt 0:00:11]} 27. Bxd5 {[%emt 0:00:11]} Rxc7 {[%emt 0:00:08]} 28. Rxf8 {[%emt 0:00:11]} Bxf8 {[%emt 0:00:08]} 29. Rf1 {[%emt 0:00:15]} Bd6 {[%emt 0:00:24]} 30. Rf7 {[%emt 0:00:14]} 1-0

[Event "Karnataka State Open-ch 2018"]
[Site "Bengaluru"]
[Date "2018.04.17"]
[Round "7"]
[White "Malla, Nooka Raju"]
[Black "Kishan, Gangolli"]
[Result "1/2-1/2"]
[ECO "A46"]
[WhiteElo "1969"]
[BlackElo "1974"]
[Annotator "NA RC"]
[PlyCount "75"]
[EventDate "2018.??.??"]
[EventType "swiss"]
[EventCountry "IND"]
[SourceTitle "playchess.com"]
[Source "ChessBase"]
[SourceQuality "1"]
[TimeControl "5400+30"]

1. d4 {[%emt 0:00:00]} Nf6 2. Nf3 {[%emt 0:00:04]} e6 3. g3 {[%emt 0:00:30]} d5 4. Bg2 {[%emt 0:00:30]} Be7 5. c4 {[%emt 0:00:30]} O-O 6. O-O {[%emt 0:00:30]} dxc4 7. Qa4 {[%emt 0:00:30]} a6 8. Qxc4 {[%emt 0:00:30]} b5 9. Qc2 {[%emt 0:00:30]} Bb7 10. Bg5 {[%emt 0:00:30]} Nbd7 11. a3 {[%emt 0:00:30] E05: Open Catalan: 5 Nf3 Be7} (11. Bxf6 Nxf6 12. Nbd2 Rc8 13. Nb3 c5 14. dxc5 Ne4 15. Rfd1 Qc7 16. c6 Qxc6 17. Qxc6 Bxc6 18. Ne5 Bd5 19. Nd7 Rfe8 20. Nb6 Rc2 21. Nxd5 exd5 22. Rxd5 Nf6 23. Re5 Ng4 24. Re4 Nf6 25. Re3 Ng4 26. Re4 Nf6 27. Re5 Ng4 {½-½ (27) Almasi,Z (2707)-Leko,P (2679) Germany 2018}) 11... c5 12. dxc5 {[%emt 0:00:30]} Bxc5 13. Nc3 $146 {[%emt 0:00:30]} ({Predecessor:} 13. Bxf6 Qxf6 14. Nc3 Rab8 15. Nd2 Rfc8 16. Rac1 Qh6 17. Rfd1 Nf6 18. Bxb7 Rxb7 19. Nf3 Rbc7 20. Kg2 Be7 21. Qb1 {½-½ (21) Sadowski,M (2235)-Keller,H (2406) ICCF email 2007}) 13... Rc8 14. Rfd1 {[%emt 0:00:30]} Qb6 15. e3 {[%emt 0:00:30]} h6 16. Bxf6 {[%emt 0:00:30]} Nxf6 17. Ne5 {[%emt 0:00:30]} Rc7 18. Bxb7 {[%emt 0:00:30]} Qxb7 19. Qe2 {[%emt 0:00:30]} Rfc8 20. Qf3 $15 {[%emt 0:00:30]} Qxf3 21. Nxf3 {[%emt 0:00:30]} Be7 22. Ne5 {[%emt 0:00:30]} Kf8 23. Rd3 {[%emt 0:00:30]} Ke8 24. h4 {[%emt 0:00:30]} Nd7 25. Nxd7 {[%emt 0:00:30]} Rxd7 26. Rad1 {[%emt 0:00:30]} Rxd3 27. Rxd3 {[%emt 0:00:30]} Bf6 28. Nd1 {[%emt 0:00:30]} Rd8 29. Rxd8+ {[%emt 0:00:30]} Kxd8 30. Kf1 {[%emt 0:00:30]} a5 31. Ke2 {[%emt 0:00:30]} Kc7 32. Kd3 {[%emt 0:00:30]} Kc6 33. f4 {[%emt 0:00:30]} Kc5 34. e4 {[%emt 0:00:30]} b4 35. axb4+ {[%emt 0:00:30]} Kxb4 36. e5 {[%emt 0:00:30]} Be7 37. Kc2 {[%emt 0:00:30]} h5 38. Kd3 {[%emt 0:00:30]} 1/2-1/2

[Event "Karnataka State Open-ch 2018"]
[Site "Bengaluru"]
[Date "2018.04.17"]
[Round "7"]
[White "Isha, Sharma"]
[Black "Likhit, Chilukuri"]
[Result "1-0"]
[ECO "C00"]
[WhiteElo "1926"]
[BlackElo "1988"]
[Annotator "NA RC"]
[PlyCount "83"]
[EventDate "2018.??.??"]
[EventType "swiss"]
[EventCountry "IND"]
[SourceTitle "playchess.com"]
[Source "ChessBase"]
[SourceQuality "1"]
[TimeControl "5400+30"]

{[%evp 26,74,-9,-28,-57,-43,-11,-25,-19,-16,25,32,54,49,54,49,56,57,74,56,79,32767,56,14,12,-20,-25,-9,32767,32767,32767,32767,32767,32767,10,3,6,5,0,32767,16,0,8,4,2,0,4,3,4,0,1]} 1. e4 {[%emt 0:00:00]} e6 {[%emt 0:00:06]} 2. d3 {[%emt 0:00:00]} d5 {[%emt 0:00:04]} 3. Nd2 {[%emt 0:00:00]} Nf6 {[%emt 0:00:39]} 4. g3 {[%emt 0:00:00]} dxe4 {[%emt 0:00:08]} 5. dxe4 {[%emt 0:00:00]} Bc5 {[%emt 0:00:04]} 6. Bg2 {[%emt 0:00:20]} e5 {[%emt 0:00:07]} 7. Ngf3 {[%emt 0:00:08]} Nc6 {[%emt 0:00:10]} 8. O-O {[%emt 0:00:11]} O-O {[%emt 0:00:06]} 9. c3 {[%emt 0:00:06]} a5 {[%emt 0:00:04]} 10. Qe2 {[%emt 0:02:47]} b6 {[%emt 0:00:07]} 11. Nc4 {[%emt 0:01:51]} Ba6 {[%emt 0:00:22]} 12. a4 {[%emt 0:01:54]} Qe7 {[%emt 0:03:47]} 13. b3 {[%emt 0:09:31] C00: French: Unusual White 2nd moves} (13. h3 Ne8 14. b3 Nd6 15. Nfd2 Qe6 16. Re1 f5 17. Ba3 f4 18. Bxc5 bxc5 19. Bf1 Kh8 20. g4 Nxc4 21. Nxc4 {½-½ (41) Pinter,G (2363)-Rendle,T (2400) England 2011}) 13... b5 {[%emt 0:12:02]} 14. axb5 {[%emt 0:08:36]} Bxb5 {[%emt 0:00:16]} 15. Nfd2 $146 {[%emt 0:10:00]} ({Predecessor:} 15. Bg5 Qe6 16. Bxf6 Qxf6 17. Nfd2 Rfd8 18. Rfd1 a4 19. bxa4 Rxa4 20. Rxa4 Bxa4 {0-1 (97) Mirza,D (1919)-Melaugh,G (1907) Ennis 2017}) 15... Qe6 {[%emt 0:06:12]} 16. Ba3 {[%emt 0:02:04]} Bxa3 {[%emt 0:00:27]} 17. Rxa3 {[%emt 0:00:04]} Rad8 {[%emt 0:02:07]} 18. Qe3 {[%emt 0:09:08]} Rd7 {[%emt 0:19:01]} 19. Re1 {[%emt 0:17:31]} Qe7 {[%emt 0:03:37]} 20. Ra2 {[%emt 0:01:57]} Rfd8 {[%emt 0:05:25]} 21. Bf1 {[%emt 0:00:12]} Ng4 {[%emt 0:10:14]} 22. Qf3 {[%emt 0:02:27]} Qe6 {[%emt 0:01:20]} 23. Be2 {[%emt 0:05:43]} Nf6 {[%emt 0:06:54]} 24. Nf1 {[%emt 0:00:38]} a4 {[%emt 0:00:28]} 25. Nfe3 {[%emt 0:04:29]} axb3 {[%emt 0:00:16]} 26. Ra3 {[%emt 0:01:56]} Ne7 {[%emt 0:16:24]} 27. Na5 {[%emt 0:07:09]} Bxe2 {[%emt 0:16:46]} 28. Rxe2 {[%emt 0:00:05]} Qh3 {[%emt 0:01:24]} 29. Re1 {[%emt 0:01:22]} Ng6 {[%emt 0:02:48]} 30. Qf5 {[%emt 0:03:07]} Qxf5 {[%emt 0:02:16]} 31. exf5 {[%emt 0:00:04]} Ne7 $1 {[%emt 0:00:10]} 32. Rxb3 {[%emt 0:00:45]} Rd3 {[%emt 0:00:47]} 33. Nb7 {[%emt 0:03:11]} Rb8 {[%emt 0:01:22]} 34. Reb1 {[%emt 0:00:06]} h5 {[%emt 0:02:07]} 35. Nc5 {[%emt 0:00:18]} Rxb3 {[%emt 0:00:05]} 36. Rxb3 {[%emt 0:00:03]} Rd8 {[%emt 0:03:03]} 37. Rb7 {[%emt 0:00:05]} Nfd5 $11 {[%emt 0:01:34]} 38. Nxd5 {[%emt 0:03:43]} Nxd5 {[%emt 0:00:23]} 39. Ne4 {[%emt 0:00:05]} Rd7 {[%emt 0:02:39]} 40. c4 {[%emt 0:06:29]} Nb6 {[%emt 0:00:13]} 41. Rb8+ {[%emt 0:01:36]} Kh7 {[%emt 0:00:05]} 42. Ng5+ {[%emt 0:00:08]} 1-0

[Event "Karnataka State Open-ch 2018"]
[Site "Bengaluru"]
[Date "2018.04.17"]
[Round "7"]
[White "Raghavendra, V."]
[Black "Sujay B M"]
[Result "1-0"]
[ECO "B22"]
[WhiteElo "1898"]
[BlackElo "1447"]
[Annotator "NA RC"]
[PlyCount "63"]
[EventDate "2018.??.??"]
[EventType "swiss"]
[EventCountry "IND"]
[SourceTitle "playchess.com"]
[Source "ChessBase"]
[SourceQuality "1"]
[TimeControl "5400+30"]

{[%evp 18,63,40,39,47,10,94,16,20,0,0,4,17,0,16,0,38,11,23,63,56,26,33,0,87,100,104,74,108,109,86,95,129,32767,32767,61,173,32767,79,-272,66,70,339,339,354,32767,32767,1065]} 1. e4 {[%emt 0:00:00]} c5 {[%emt 0:00:06]} 2. c3 {[%emt 0:00:00]} Nf6 {[%emt 0:00:23]} 3. e5 {[%emt 0:00:00]} Nd5 {[%emt 0:00:08]} 4. d4 {[%emt 0:00:00]} Nc6 {[%emt 0:00:26]} 5. Nf3 {[%emt 0:00:34]} d6 {[%emt 0:02:15]} 6. Bc4 {[%emt 0:01:35] B22: Sicilian: 2 c3} Nb6 {[%emt 0:04:45]} 7. Bb5 {[%emt 0:00:23]} Bd7 {[%emt 0:02:20]} (7... cxd4 8. Nxd4 Bd7 9. exd6 Nxd4 10. Bxd7+ Qxd7 11. Qxd4 e6 12. Bf4 f6 13. Nd2 e5 {1-0 (60) Neverov,V (2480)-Mgeladze,T (2303) Batumi 2018}) 8. dxc5 $146 {[%emt 0:09:51]} ({Predecessor:} 8. exd6 exd6 9. O-O Be7 10. Bf4 O-O 11. Be2 Re8 12. d5 Nb8 13. Re1 Bg4 {1-0 (30) Kosintseva,T (2303)-Evdokimov,A (2356) Rybinsk 2001}) 8... dxc5 {[%emt 0:00:27]} 9. O-O {[%emt 0:00:45]} e6 {[%emt 0:07:02]} 10. Qe2 {[%emt 0:01:41]} Be7 {[%emt 0:04:20]} 11. Nbd2 {[%emt 0:01:12]} O-O {[%emt 0:02:31]} (11... Qc7 $11 {keeps the balance.}) 12. Ne4 {[%emt 0:00:30]} ({White should play} 12. Bd3 $16) 12... Nxe5 $1 {[%emt 0:06:03]} 13. Nxe5 {[%emt 0:05:33]} Bxb5 {[%emt 0:00:11]} 14. Qxb5 {[%emt 0:02:02]} Qd5 {[%emt 0:00:09]} 15. Nxf7 $1 {[%emt 0:05:58]} Qxe4 {[%emt 0:11:02]} 16. Ng5 {[%emt 0:01:01]} Qg6 {[%emt 0:05:17]} 17. Nh3 $1 {[%emt 0:01:48]} Rf5 {[%emt 0:09:49]} 18. Qe2 {[%emt 0:05:12]} Raf8 {[%emt 0:02:07]} 19. Bd2 {[%emt 0:05:39]} Bd6 {[%emt 0:05:35]} 20. Rae1 {[%emt 0:02:22]} e5 {[%emt 0:00:24]} (20... Re5 $11 21. Qd1 Rh5) 21. Qe4 {[%emt 0:01:10]} Qf7 {[%emt 0:11:35]} 22. b3 {[%emt 0:03:37]} Bb8 {[%emt 0:00:36]} 23. c4 {[%emt 0:02:10]} Nc8 {[%emt 0:01:31]} 24. Ng5 {[%emt 0:01:34]} Qe7 {[%emt 0:03:28]} 25. Qd5+ {[%emt 0:08:52]} Kh8 {[%emt 0:00:11] [#]} 26. Qe6 {[%emt 0:03:00]} (26. f4 $1 $16) 26... Qc7 {[%emt 0:01:59]} (26... b6 $14) 27. Re4 {[%emt 0:05:21]} R8f6 {[%emt 0:03:26]} (27... Qd8 $11 {keeps the balance.} 28. Rg4 R8f6) 28. Qe8+ {[%emt 0:00:36]} Rf8 {[%emt 0:00:02]} 29. Qh5 {[%emt 0:02:31]} g6 $2 {[%emt 0:01:32]} (29... h6 $14) 30. Qh6 {[%emt 0:00:52]} Qe7 $18 {[%emt 0:00:27]} 31. Rh4 {[%emt 0:01:05]} Nd6 {[%emt 0:03:46]} 32. Nxh7 {[%emt 0:05:21]} 1-0